fUSD/lending_fUSD_20241023
["ID","MTS","AMOUNT","RATE_DAILY","PERIOD"]
[340708923,1729696270289,-500.0,0.00052234,120]
[340708924,1729696270299,-500.0,0.00052234,120]
[340708925,1729696270309,-805.45,0.00052234,120]
[340708926,1729696270320,-1202.13,0.00052234,120]
[340708927,1729696270334,-500.0,0.00052235,120]
[340708928,1729696270343,-500.0,0.00052235,120]
[340708929,1729696270353,-500.0,0.00052235,120]
[340708930,1729696270363,-260.92424676,0.00052235,120]
[340708931,1729696270373,-500.0,0.00052235,120]
[340708932,1729696270383,-1011.7,0.00052235,120]
[340708933,1729696270393,-500.0,0.00052235,120]
[340708934,1729696270404,-726.23,0.00052235,120]
[340708935,1729696270413,-500.0,0.00052235,120]
[340708936,1729696270423,-500.0,0.00052235,120]
[340708937,1729696270433,-500.0,0.00052235,120]
[340708938,1729696270443,-500.0,0.00052235,120]
[340708939,1729696270452,-500.0,0.00052235,120]
[340708940,1729696270462,-500.0,0.00052235,120]
[340708941,1729696270472,-500.0,0.0005225,120]
[340708942,1729696270482,-500.0,0.0005225,120]
[340708943,1729696270491,-1333.47,0.0005225,120]
[340708944,1729696270500,-947.6,0.0005225,120]
[340708945,1729696270510,-500.0,0.0005225,120]
[340708946,1729696270520,-500.0,0.0005225,120]
[340708947,1729696270531,-1028.07,0.0005225,120]
[340708948,1729696270540,-500.0,0.0005225,120]
[340708949,1729696270549,-500.0,0.0005225,120]
[340708950,1729696270559,-500.0,0.0005225,120]
[340708951,1729696270568,-500.0,0.0005225,120]
[340708952,1729696270577,-500.0,0.0005225,120]
[340708953,1729696270586,-500.0,0.0005225,120]
[340708954,1729696270595,-500.0,0.0005225,120]
[340708955,1729696270605,-650.47,0.0005225,120]
[340708956,1729696270614,-1207.39,0.0005225,120]
[340708957,1729696270624,-833.24,0.0005225,120]
[340708958,1729696270633,-500.0,0.00052334,120]
[340708959,1729696270643,-500.0,0.00052334,120]
[340708960,1729696270652,-500.0,0.00052334,120]
[340708961,1729696270661,-500.0,0.00052334,120]
[340708962,1729696270670,-500.0,0.00052334,120]
[340708963,1729696270680,-500.0,0.00052334,120]
[340708964,1729696270689,-631.55,0.00052334,120]
[340708965,1729696270699,-500.0,0.00052334,120]
[340708966,1729696270709,-500.0,0.00052334,120]
[340708967,1729696270719,-500.0,0.00052334,120]
[340708968,1729696270727,-500.0,0.00052334,120]
[340708969,1729696270736,-500.0,0.00052334,120]
[340708970,1729696270746,-500.0,0.00052334,120]
[340708971,1729696270755,-500.0,0.00052334,120]
[340708972,1729696270763,-932.92,0.00052334,120]
[340708973,1729696270775,-1518.46,0.00052334,120]
[340708974,1729696270785,-500.0,0.00052334,120]
[340708975,1729696270794,-500.0,0.00052334,120]
[340708976,1729696270802,-500.0,0.00052334,120]
[340708977,1729696270812,-500.0,0.00052334,120]
[340708978,1729696270822,-616.62,0.00052334,7]
[340708979,1729696270831,-1134.13,0.00052334,60]
[340708980,1729696270841,-500.0,0.00052334,120]
[340708981,1729696270850,-500.0,0.00052334,120]
[340708982,1729696270861,-500.0,0.00052334,120]
[340708983,1729696270871,-500.0,0.00052334,120]
[340708984,1729696270880,-500.0,0.00052334,120]
[340708985,1729696270890,-500.0,0.00052334,120]
[340708986,1729696270900,-500.0,0.00052334,120]
[340708987,1729696270910,-500.0,0.00052334,120]
[340708988,1729696270920,-963.46,0.00052334,120]
[340708989,1729696270929,-976.56,0.00052334,120]
[340708990,1729696270939,-658.07,0.00052334,120]
[340708991,1729696270949,-500.0,0.00052334,120]
[340708992,1729696270959,-951.13,0.00052334,120]
[340708993,1729696270969,-1201.86,0.00052334,120]
[340708994,1729696270979,-629.96,0.00052334,120]
[340708995,1729696270989,-1045.98,0.00052334,120]
[340708996,1729696270999,-500.0,0.00052334,120]
[340708997,1729696271009,-500.0,0.00052342,120]
[340708998,1729696271018,-1487.73,0.00052425,120]
[340708999,1729696271030,-152.467185,0.00052425,120]
[340709000,1729696271040,-500.0,0.00052425,120]
[340709001,1729696271050,-153.042613,0.00052425,120]
[340709002,1729696271060,-165.048286,0.00052425,120]
[340709003,1729696271070,-500.0,0.00052425,120]
[340709004,1729696271080,-234.993278,0.00052425,120]
[340709005,1729696271090,-958.81,0.00052425,120]
[340709006,1729696271100,-7538.25,0.00052425,120]
[340709007,1729696271110,-500.0,0.00052425,120]
[340709008,1729696271120,-618.61,0.00052425,120]
[340709009,1729696271130,-500.0,0.00052425,120]
[340709010,1729696271139,-2827.89,0.00052425,21]
[340709011,1729696271149,-775.74,0.00052425,120]
[340709012,1729696271158,-900.97,0.00052425,120]
[340709013,1729696271168,-1263.76,0.00052425,120]
[340709014,1729696271178,-1052.1,0.00052425,120]
[340709015,1729696271188,-518.32,0.00052425,120]
[340709016,1729696271197,-1190.96,0.00052425,120]
[340709017,1729696271207,-500.0,0.00052425,120]
[340709018,1729696271217,-639.92,0.00052434,120]
[340709019,1729696271227,-500.0,0.00052434,120]
[340709020,1729696271237,-1145.77,0.00052434,120]
[340709021,1729696271247,-1096.93,0.00052434,120]
[340709022,1729696271256,-500.0,0.00052434,120]
[340709023,1729696271266,-1101.51,0.00052434,120]
[340709024,1729696271279,-670.28,0.00052434,120]
[340709025,1729696271289,-500.0,0.00052434,120]
[340709026,1729696271299,-500.0,0.00052434,120]
[340709027,1729696271310,-500.0,0.00052434,120]
[340709028,1729696271322,-500.0,0.00052434,120]
[340709029,1729696271333,-657.44,0.00052434,120]
[340709030,1729696271343,-2806.4,0.00052434,120]
[340709031,1729696271353,-436.33943141,0.00052434,120]
[340709032,1729696271363,-1534.31,0.00052434,120]
[340709033,1729696271372,-586.39,0.00052435,120]
[340709034,1729696271382,-500.0,0.00052435,120]
[340709035,1729696271391,-500.0,0.00052435,120]
[340709036,1729696271402,-500.0,0.00052435,120]
[340709037,1729696271412,-500.0,0.00052435,120]
[340709038,1729696271422,-500.0,0.00052435,120]
[340709039,1729696271433,-500.0,0.00052435,120]
[340709040,1729696271443,-500.0,0.00052435,120]
[340709041,1729696271454,-500.0,0.00052435,120]
[340709042,1729696271463,-500.0,0.00052435,120]
[340709043,1729696271474,-500.0,0.00052435,120]
[340709044,1729696271484,-500.0,0.00052435,120]
[340709045,1729696271495,-500.0,0.00052435,120]
[340709046,1729696271504,-500.0,0.00052435,120]
[340709047,1729696271515,-500.0,0.00052435,120]
[340709048,1729696271526,-500.0,0.00052435,120]
[340709049,1729696271535,-500.0,0.00052435,120]
[340709050,1729696271545,-500.0,0.00052435,120]
[340709051,1729696271555,-150.0,0.00052435,120]
[340709052,1729696271565,-256.79278199,0.00052435,120]
[340709053,1729696271575,-505.37,0.00052435,120]
[340709054,1729696271585,-554.06,0.00052435,120]
[340709055,1729696271595,-512.94,0.00052435,120]
[340709056,1729696271605,-500.0,0.00052435,120]
[340709057,1729696271615,-1145.54,0.00052435,120]
[340709058,1729696271625,-500.0,0.00052435,120]
[340709059,1729696271635,-500.0,0.00052435,120]
[340709060,1729696271645,-500.0,0.00052435,120]
[340709061,1729696271655,-500.0,0.00052435,120]
[340709062,1729696271665,-672.92,0.00052435,120]
[340709063,1729696271674,-542.37,0.00052435,120]
[340709064,1729696271684,-500.0,0.00052435,120]
[340709065,1729696271694,-922.62,0.00052435,120]
[340709066,1729696271704,-500.0,0.00052435,120]
[340709067,1729696271715,-500.0,0.00052435,120]
[340709068,1729696271725,-500.0,0.00052435,120]
[340709069,1729696271734,-500.0,0.00052435,120]
[340709070,1729696271744,-500.0,0.00052435,120]
[340709071,1729696271754,-584.33,0.00052435,120]
[340709072,1729696271764,-753.53,0.00052435,120]
[340709073,1729696271775,-199.63843843,0.00052435,120]
[340709074,1729696271785,-500.0,0.00052435,120]
[340709075,1729696271795,-500.0,0.00052435,120]
[340709076,1729696271805,-968.55,0.00052435,120]
[340709077,1729696271815,-500.0,0.00052435,120]
[340709078,1729696271825,-1925.48,0.00052435,120]
[340709079,1729696271835,-1030.77,0.00052435,120]
[340709080,1729696271845,-500.0,0.00052435,120]
[340709081,1729696271854,-1363.34,0.00052435,120]
[340709082,1729696271865,-500.0,0.00052435,120]
[340709083,1729696271875,-847.01,0.00052435,120]
[340709084,1729696271884,-700.02,0.00052435,120]
[340709085,1729696271894,-622.74,0.00052435,120]
[340709086,1729696271904,-601.0,0.00052435,120]
[340709087,1729696271913,-500.0,0.00052435,120]
[340709088,1729696271922,-1335.55,0.00052435,120]
[340709089,1729696271932,-884.17,0.00052435,120]
[340709090,1729696271942,-500.0,0.00052435,120]
[340709091,1729696271951,-500.0,0.00052435,120]
[340709092,1729696271962,-500.0,0.00052435,120]
[340709093,1729696271974,-500.0,0.00052435,7]
[340709094,1729696271984,-500.0,0.00052435,120]
[340709095,1729696271994,-500.0,0.00052435,120]
[340709096,1729696272005,-500.0,0.00052435,120]
[340709097,1729696272015,-1593.84,0.00052435,120]
[340709098,1729696272026,-500.0,0.00052435,120]
[340709099,1729696272036,-500.0,0.00052435,120]
[340709100,1729696272046,-835.69,0.00052508,120]
[340709101,1729696272056,-935.08,0.00052508,120]
[340709102,1729696272065,-500.0,0.00052508,120]
[340709103,1729696272075,-500.0,0.00052508,120]
[340709104,1729696272086,-500.0,0.00052508,120]
[340709105,1729696272095,-2535.29,0.00052508,120]
[340709106,1729696272106,-1430.45,0.00052508,120]
[340709107,1729696272115,-2063.97,0.00052508,120]
[340709108,1729696272126,-500.0,0.00052508,120]
[340709109,1729696272135,-500.0,0.00052508,120]
[340709110,1729696272145,-805.45,0.00052508,120]
[340709111,1729696272156,-500.0,0.00052509,120]
[340709112,1729696272165,-185.6145,0.00052509,120]
[340709113,1729696272175,-185.6145,0.00052509,120]
[340709114,1729696272185,-151.0,0.00052509,120]
[340709115,1729696272194,-429.07347634,0.00052509,120]
[340709116,1729696272204,-2416.794645,0.00052509,120]
[340709117,1729696272214,-210.347416,0.00052509,120]
[340709118,1729696272224,-2416.794645,0.00052509,120]
[340709119,1729696272233,-210.347416,0.00052509,120]
[340709120,1729696272243,-500.0,0.00052509,120]
[340709121,1729696272253,-500.0,0.00052509,120]
[340709122,1729696272263,-1011.7,0.00052509,120]
[340709123,1729696272273,-500.0,0.00052509,120]
[340709124,1729696272283,-726.23,0.00052509,120]
[340709125,1729696272293,-500.0,0.00052509,120]
[340709126,1729696272303,-500.0,0.00052509,120]
[340709127,1729696272315,-500.0,0.00052509,120]
[340709128,1729696272328,-500.0,0.00052509,120]
[340709129,1729696272338,-500.0,0.00052509,120]
[340709130,1729696272347,-500.0,0.00052509,120]
[340709131,1729696272357,-500.0,0.00052524,120]
[340709132,1729696272367,-500.0,0.00052524,120]
[340709133,1729696272377,-1333.47,0.00052524,120]
[340709134,1729696272387,-947.6,0.00052524,120]
[340709135,1729696272398,-500.0,0.00052524,120]
[340709136,1729696272409,-500.0,0.00052524,120]
[340709137,1729696272418,-1028.07,0.00052524,120]
[340709138,1729696272428,-500.0,0.00052524,120]
[340709139,1729696272438,-500.0,0.00052524,120]
[340709140,1729696272448,-500.0,0.00052524,120]
[340709141,1729696272458,-500.0,0.00052524,120]
[340709142,1729696272468,-500.0,0.00052524,120]
[340709143,1729696272477,-500.0,0.00052524,120]
[340709144,1729696272488,-500.0,0.00052524,120]
[340709145,1729696272497,-650.47,0.00052524,120]
[340709146,1729696272507,-1207.39,0.00052524,120]
[340709147,1729696272517,-833.24,0.00052524,120]
[340709148,1729696272529,-750.0,0.0005253,14]
[340709149,1729696272539,-270.27253765,0.00052539,28]
[340709150,1729696272549,-500.0,0.00052608,120]
[340709151,1729696272559,-500.0,0.00052608,120]
[340709152,1729696272569,-500.0,0.00052608,120]
[340709153,1729696272578,-500.0,0.00052608,120]
[340709154,1729696272588,-500.0,0.00052608,120]
[340709155,1729696272598,-500.0,0.00052608,120]
[340709156,1729696272608,-631.55,0.00052608,120]
[340709157,1729696272618,-500.0,0.00052608,120]
[340709158,1729696272628,-500.0,0.00052608,120]
[340709159,1729696272638,-500.0,0.00052608,120]
[340709160,1729696272648,-500.0,0.00052608,120]
[340709161,1729696272658,-500.0,0.00052608,120]
[340709162,1729696272668,-183.31683361,0.00052608,120]
[340709163,1729696272678,-500.0,0.00052608,120]
[340709164,1729696272688,-932.92,0.00052608,120]
[340709165,1729696272699,-1518.46,0.00052608,120]
[340709166,1729696272709,-500.0,0.00052608,120]
[340709167,1729696272719,-500.0,0.00052608,120]
[340709168,1729696272730,-500.0,0.00052608,120]
[340709169,1729696272740,-500.0,0.00052608,120]
[340709170,1729696272750,-616.62,0.00052608,7]
[340709171,1729696272760,-218.900187,0.00052608,120]
[340709172,1729696272772,-1134.13,0.00052608,60]
[340709173,1729696272782,-500.0,0.00052608,120]
[340709174,1729696272793,-218.900187,0.00052608,120]
[340709175,1729696272803,-151.0,0.00052608,120]
[340709176,1729696272813,-500.0,0.00052608,120]
[340709177,1729696272823,-500.0,0.00052608,120]
[340709178,1729696272833,-500.0,0.00052608,120]
[340709179,1729696272843,-500.0,0.00052608,120]
[340709180,1729696272852,-500.0,0.00052608,120]
[340709181,1729696272863,-500.0,0.00052608,120]
[340709182,1729696272872,-500.0,0.00052608,120]
[340709183,1729696272882,-963.46,0.00052608,120]
[340709184,1729696272892,-976.56,0.00052608,120]
[340709185,1729696272902,-658.07,0.00052608,120]
[340709186,1729696272912,-500.0,0.00052608,120]
[340709187,1729696272922,-951.13,0.00052608,120]
[340709188,1729696272933,-1201.86,0.00052608,120]
[340709189,1729696272942,-629.96,0.00052608,120]
[340709190,1729696272953,-1045.98,0.00052608,120]
[340709191,1729696272963,-500.0,0.00052608,120]
[340709192,1729696272973,-1487.73,0.00052699,120]
[340709193,1729696272983,-500.0,0.00052699,120]
[340709194,1729696272994,-165.048286,0.00052699,120]
[340709195,1729696273005,-500.0,0.00052699,120]
[340709196,1729696273016,-234.993278,0.00052699,120]
[340709197,1729696273028,-958.81,0.00052699,120]
[340709198,1729696273038,-7538.25,0.00052699,120]
[340709199,1729696273048,-500.0,0.00052699,120]
[340709200,1729696273059,-618.61,0.00052699,120]
[340709201,1729696273070,-154.54007269,0.00052699,120]
[340709202,1729696273081,-2827.89,0.00052699,21]
[340709203,1729696273091,-775.74,0.00052699,120]
[340709204,1729696273102,-900.97,0.00052699,120]
[340709205,1729696273113,-1263.76,0.00052699,120]
[340709206,1729696273124,-1052.1,0.00052699,120]
[340709207,1729696273285,-518.32,0.00052699,120]
[340709208,1729696273315,-1190.96,0.00052699,120]
[340709209,1729696273326,-500.0,0.00052699,120]
[340709210,1729696273338,-639.92,0.00052708,120]
[340709211,1729696273348,-500.0,0.00052708,120]
[340709212,1729696273359,-1145.77,0.00052708,120]
[340709213,1729696273369,-1096.93,0.00052708,120]
[340709214,1729696273379,-500.0,0.00052708,120]
[340709215,1729696273390,-1101.51,0.00052708,120]
[340709216,1729696273399,-670.28,0.00052708,120]
[340709217,1729696273410,-500.0,0.00052708,120]
[340709218,1729696273421,-500.0,0.00052708,120]
[340709219,1729696273432,-500.0,0.00052708,120]
[340709220,1729696273443,-438.78362985,0.00052708,120]
[340709221,1729696273454,-657.44,0.00052708,120]
[340709222,1729696273465,-2806.4,0.00052708,120]
[340709223,1729696273475,-1534.31,0.00052708,120]
[340709224,1729696273487,-586.39,0.00052709,120]
[340709225,1729696273497,-568.86148971,0.00052709,120]
[340709226,1729696273509,-458.8015951,0.00052709,120]
[340709227,1729696273520,-500.0,0.00052709,120]
[340709228,1729696273532,-410.23800964,0.00052709,120]
[340709229,1729696273542,-500.0,0.00052709,120]
[340709230,1729696273552,-500.0,0.00052709,120]
[340709231,1729696273561,-500.0,0.00052709,120]
[340709232,1729696273571,-500.0,0.00052709,120]
[340709233,1729696273580,-500.0,0.00052709,120]
[340709234,1729696273590,-500.0,0.00052709,120]
[340709235,1729696273599,-500.0,0.00052709,120]
[340709236,1729696273608,-500.0,0.00052709,120]
[340709237,1729696273618,-500.0,0.00052709,120]
[340709238,1729696273628,-232.83888801,0.00052709,120]
[340709239,1729696273638,-500.0,0.00052709,120]
[340709240,1729696273647,-500.0,0.00052709,120]
[340709241,1729696273656,-500.0,0.00052709,120]
[340709242,1729696273666,-150.0,0.00052709,120]
[340709243,1729696273675,-505.37,0.00052709,120]
[340709244,1729696273685,-554.06,0.00052709,120]
[340709245,1729696273694,-512.94,0.00052709,120]
[340709246,1729696273704,-500.0,0.00052709,120]
[340709247,1729696273714,-1145.54,0.00052709,120]
[340709248,1729696273724,-500.0,0.00052709,120]
[340709249,1729696273734,-329.74068657,0.00052709,120]
[340709250,1729696273743,-500.0,0.00052709,120]
[340709251,1729696273753,-500.0,0.00052709,120]
[340709252,1729696273762,-672.92,0.00052709,120]
[340709253,1729696273773,-542.37,0.00052709,120]
[340709254,1729696273783,-500.0,0.00052709,120]
[340709255,1729696273792,-922.62,0.00052709,120]
[340709256,1729696273803,-500.0,0.00052709,120]
[340709257,1729696273812,-500.0,0.00052709,120]
[340709258,1729696273822,-500.0,0.00052709,120]
[340709259,1729696273833,-500.0,0.00052709,120]
[340709260,1729696273844,-500.0,0.00052709,120]
[340709261,1729696273855,-584.33,0.00052709,120]
[340709262,1729696273868,-753.53,0.00052709,120]
[340709263,1729696273879,-343.66908238,0.00052709,120]
[340709264,1729696273890,-500.0,0.00052709,120]
[340709265,1729696273899,-968.55,0.00052709,120]
[340709266,1729696273909,-500.0,0.00052709,120]
[340709267,1729696273919,-1925.48,0.00052709,120]
[340709268,1729696273929,-1030.77,0.00052709,120]
[340709269,1729696273940,-500.0,0.00052709,120]
[340709270,1729696273950,-1363.34,0.00052709,120]
[340709271,1729696273962,-500.0,0.00052709,120]
[340709272,1729696273972,-847.01,0.00052709,120]
[340709273,1729696273983,-700.02,0.00052709,120]
[340709274,1729696273992,-622.74,0.00052709,120]
[340709275,1729696274002,-601.0,0.00052709,120]
[340709276,1729696274012,-500.0,0.00052709,120]
[340709277,1729696274023,-1335.55,0.00052709,120]
[340709278,1729696274032,-884.17,0.00052709,120]
[340709279,1729696274042,-500.0,0.00052709,120]
[340709280,1729696274053,-500.0,0.00052709,120]
[340709281,1729696274064,-500.0,0.00052709,120]
[340709282,1729696274075,-500.0,0.00052709,7]
[340709283,1729696274085,-500.0,0.00052709,120]
[340709284,1729696274097,-500.0,0.00052709,120]
[340709285,1729696274109,-500.0,0.00052709,120]
[340709286,1729696274119,-1593.84,0.00052709,120]
[340709287,1729696274129,-500.0,0.00052709,120]
[340709288,1729696274139,-500.0,0.00052709,120]
[340709289,1729696274148,-151.0,0.0005271,120]
[340709290,1729696274159,-151.0,0.0005271,120]
[340709291,1729696274170,-151.0,0.0005271,120]
[340709292,1729696274181,-151.0,0.0005271,120]
[340709293,1729696274191,-481.388893,0.0005271,120]
[340709294,1729696274204,-481.388893,0.0005271,120]
[340709295,1729696274213,-151.828938,0.0005271,7]
[340709296,1729696274223,-151.828938,0.0005271,7]
[340709297,1729696274232,-151.0,0.0005271,120]
[340709298,1729696274241,-151.0,0.0005271,120]
[340709299,1729696274253,-151.0,0.0005271,120]
[340709300,1729696274262,-492.704606,0.0005271,120]
[340709301,1729696274275,-492.704606,0.0005271,120]
[340709302,1729696274285,-3145.174156,0.0005271,120]
[340709303,1729696274294,-3801.118878,0.0005271,120]
[340709304,1729696274304,-257.524947,0.0005271,120]
[340709305,1729696274313,-3145.174156,0.0005271,120]
[340709306,1729696274327,-3801.118878,0.0005271,120]
[340709307,1729696274337,-151.0,0.0005271,120]
[340709308,1729696274346,-390.897813,0.0005271,120]
[340709309,1729696274356,-390.897813,0.0005271,120]
[340709310,1729696274370,-345.684819,0.0005271,120]
[340709311,1729696274380,-345.684819,0.0005271,120]
[340709312,1729696274390,-268.941669,0.0005271,30]
[340709313,1729696274402,-151.0,0.0005271,120]
[340709314,1729696274416,-268.941669,0.0005271,30]
[340709315,1729696274426,-300.841811,0.0005271,120]
[340709316,1729696274436,-300.841811,0.0005271,120]
[340709317,1729696274446,-207.980749,0.0005271,120]
[340709318,1729696274456,-207.980749,0.0005271,120]
[340709319,1729696274465,-247.165535,0.0005271,120]
[340709320,1729696274475,-223.872688,0.0005271,120]
[340709321,1729696274484,-247.165535,0.0005271,120]
[340709322,1729696274494,-151.0,0.0005271,7]
[340709323,1729696274504,-223.872688,0.0005271,120]
[340709324,1729696274514,-151.0,0.0005271,120]
[340709325,1729696274525,-151.0,0.0005271,7]
[340709326,1729696274534,-151.0,0.0005271,120]
[340709327,1729696274544,-151.0,0.0005271,120]
[340709328,1729696274553,-151.0,0.0005271,120]
[340709329,1729696274563,-29499.9546,0.0005271,2]
[340709330,1729696274572,-31398.0265,0.0005271,2]
[340709331,1729696274582,-10000.0,0.0005271,60]
[340709332,1729696274592,-835.69,0.00052782,120]
[340709333,1729696274601,-935.08,0.00052782,120]
[340709334,1729696274610,-500.0,0.00052782,120]
[340709335,1729696274619,-500.0,0.00052782,120]
[340709336,1729696274629,-500.0,0.00052782,120]
[340709337,1729696274638,-2535.29,0.00052782,120]
[340709338,1729696274648,-1430.45,0.00052782,120]
[340709339,1729696274658,-2063.97,0.00052782,120]
[340709340,1729696274667,-500.0,0.00052782,120]
[340709341,1729696274676,-500.0,0.00052782,120]
[340709342,1729696274686,-805.45,0.00052782,120]
[340709343,1729696274697,-500.0,0.00052783,120]
[340709344,1729696274707,-151.0,0.00052783,120]
[340709345,1729696274716,-151.0,0.00052783,120]
[340709346,1729696274727,-151.0,0.00052783,120]
[340709347,1729696274736,-500.0,0.00052783,120]
[340709348,1729696274747,-928.69539,0.00052783,120]
[340709349,1729696274758,-928.69539,0.00052783,120]
[340709350,1729696274768,-209.313639,0.00052783,120]
[340709351,1729696274779,-209.313639,0.00052783,120]
[340709352,1729696274788,-293.637255,0.00052783,120]
[340709353,1729696274798,-449.7487259,0.00052783,120]
[340709354,1729696274808,-151.0,0.00052783,120]
[340709355,1729696274818,-293.637255,0.00052783,120]
[340709356,1729696274828,-2362.71211,0.00052783,120]
[340709357,1729696274839,-2362.71211,0.00052783,120]
[340709358,1729696274851,-151.0,0.00052783,120]
[340709359,1729696274862,-1011.7,0.00052783,120]
[340709360,1729696274873,-1620.59319,0.00052783,120]
[340709361,1729696274883,-1620.59319,0.00052783,120]
[340709362,1729696274893,-500.0,0.00052783,120]
[340709363,1729696274905,-726.23,0.00052783,120]
[340709364,1729696274915,-500.0,0.00052783,120]
[340709365,1729696274926,-224.465068,0.00052783,120]
[340709366,1729696274935,-224.465068,0.00052783,120]
[340709367,1729696274945,-500.0,0.00052783,120]
[340709368,1729696274955,-500.0,0.00052783,120]
[340709369,1729696274965,-151.0,0.00052783,120]
[340709370,1729696274975,-151.0,0.00052783,120]
[340709371,1729696274986,-500.0,0.00052783,120]
[340709372,1729696274997,-500.0,0.00052783,120]
[340709373,1729696275006,-500.0,0.00052783,120]
[340709374,1729696275015,-500.0,0.00052798,120]
[340709375,1729696275025,-500.0,0.00052798,120]
[340709376,1729696275035,-1333.47,0.00052798,120]
[340709377,1729696275044,-947.6,0.00052798,120]
[340709378,1729696275054,-513.84174918,0.00052798,120]
[340709379,1729696275064,-500.0,0.00052798,120]
[340709380,1729696275074,-1028.07,0.00052798,120]
[340709381,1729696275084,-879.618565,0.00052798,120]
[340709382,1729696275095,-879.618565,0.00052798,120]
[340709383,1729696275107,-202.248276,0.00052798,30]
[340709384,1729696275117,-151.0,0.00052798,120]
[340709385,1729696275127,-481.860367,0.00052798,120]
[340709386,1729696275139,-481.860367,0.00052798,120]
[340709387,1729696275149,-500.0,0.00052798,120]
[340709388,1729696275159,-280.199825,0.00052798,120]
[340709389,1729696275168,-280.199825,0.00052798,120]
[340709390,1729696275178,-500.0,0.00052798,120]
[340709391,1729696275189,-151.0,0.00052798,120]
[340709392,1729696275199,-706.876721,0.00052798,120]
[340709393,1729696275211,-706.876721,0.00052798,120]
[340709394,1729696275222,-567.32416714,0.00052798,120]
[340709395,1729696275234,-500.0,0.00052798,120]
[340709396,1729696275244,-529.25954785,0.00052798,120]
[340709397,1729696275254,-500.0,0.00052798,120]
[340709398,1729696275265,-151.0,0.00052798,120]
[340709399,1729696275276,-470.10633443,0.00052798,120]
[340709400,1729696275286,-650.47,0.00052798,120]
[340709401,1729696275295,-208.652228,0.00052798,120]
[340709402,1729696275304,-208.652228,0.00052798,120]
[340709403,1729696275314,-1207.39,0.00052798,120]
[340709404,1729696275325,-833.24,0.00052798,120]
[340709405,1729696275336,-201.12,0.000528,120]
[340709406,1729696275345,-1400.0,0.000528,19]
[340709407,1729696275357,-204.58054288,0.000528,11]
[340709408,1729696275368,-13579.02421781,0.000528,2]
[340709409,1729696275379,-500.0,0.00052882,120]
[340709410,1729696275389,-500.0,0.00052882,120]
[340709411,1729696275400,-500.0,0.00052882,120]
[340709412,1729696275411,-591.09243751,0.00052882,120]
[340709413,1729696275421,-500.0,0.00052882,120]
[340709414,1729696275430,-500.0,0.00052882,120]
[340709415,1729696275442,-631.55,0.00052882,120]
[340709416,1729696275453,-500.0,0.00052882,120]
[340709417,1729696275463,-500.0,0.00052882,120]
[340709418,1729696275474,-500.0,0.00052882,120]
[340709419,1729696275484,-500.0,0.00052882,120]
[340709420,1729696275495,-500.0,0.00052882,120]
[340709421,1729696275506,-500.0,0.00052882,120]
[340709422,1729696275517,-932.92,0.00052882,120]